fUST/lending_fUST_20240215
["ID","MTS","AMOUNT","RATE_DAILY","PERIOD"]
[314105755,1707983442410,-166.13318007,0.0003579,7]
[314105757,1707983442422,-166.13318007,0.0003579,7]
[314105760,1707983442437,-166.13318007,0.0003584,7]
[314105762,1707983442451,-1499.99,0.0003586,2]
[314105765,1707983442465,-250.0,0.00035862,15]
[314105767,1707983442479,-1500.0,0.00035863,2]
[314105769,1707983442492,-1500.01,0.00035887,2]
[314105771,1707983442503,-500.0,0.00035889,15]
[314105774,1707983442513,-500.0,0.00035889,15]
[314105776,1707983442525,-409.87247855,0.00035889,15]
[314105779,1707983442539,-500.0,0.00035889,15]
[314105782,1707983442551,-500.0,0.00035889,15]
[314105784,1707983442563,-596.70127433,0.00035889,15]
[314105786,1707983442576,-500.0,0.00035889,15]
[314105788,1707983442587,-500.0,0.00035889,15]
[314105790,1707983442598,-237.36669679,0.00035889,15]
[314105793,1707983442610,-197.33585836,0.00035889,15]
[314105795,1707983442620,-500.0,0.00035889,15]
[314105797,1707983442632,-500.0,0.00035889,15]
[314105799,1707983442643,-500.0,0.00035889,15]
[314105801,1707983442654,-276.07965877,0.00035889,15]
[314105804,1707983442666,-500.0,0.00035889,15]
[314105807,1707983442677,-539.02217487,0.00035889,15]
[314105809,1707983442689,-500.0,0.00035889,15]
[314105811,1707983442699,-500.0,0.00035889,15]
[314105814,1707983442710,-500.0,0.00035889,15]
[314105817,1707983442721,-500.0,0.00035889,15]
[314105821,1707983442733,-500.0,0.00035889,15]
[314105825,1707983442745,-500.0,0.00035889,15]
[314105827,1707983442756,-500.0,0.00035889,15]
[314105829,1707983442767,-500.0,0.00035889,15]
[314105831,1707983442778,-500.0,0.00035889,15]
[314105834,1707983442788,-500.0,0.00035889,15]
[314105836,1707983442800,-500.0,0.00035889,15]
[314105838,1707983442811,-500.0,0.00035889,15]
[314105840,1707983442822,-500.0,0.00035889,15]
[314105842,1707983442832,-500.0,0.0003589,14]
[314105845,1707983442843,-500.0,0.0003589,14]
[314105847,1707983442853,-500.0,0.0003589,14]
[314105849,1707983442865,-158.63636176,0.0003589,14]
[314105851,1707983442876,-570.85612228,0.0003589,14]
[314105853,1707983442887,-500.0,0.0003589,14]
[314105856,1707983442899,-500.0,0.0003589,14]
[314105858,1707983442909,-500.0,0.0003589,14]
[314105860,1707983442918,-169.89299876,0.0003589,2]
[314105862,1707983442927,-504.48860411,0.0003589,14]
[314105864,1707983442937,-183.67337361,0.0003589,2]
[314105866,1707983442946,-500.0,0.0003589,14]
[314105868,1707983442956,-500.0,0.0003589,7]
[314105870,1707983442965,-500.0,0.0003589,14]
[314105871,1707983442974,-500.0,0.0003589,14]
[314105873,1707983442983,-500.0,0.0003589,14]
[314105875,1707983442992,-500.0,0.0003589,14]
[314105884,1707983443108,-500.0,0.0003589,14]
[314105885,1707983443122,-500.0,0.0003589,14]
[314105886,1707983443131,-500.0,0.0003589,14]
[314105887,1707983443142,-500.0,0.0003589,14]
[314105888,1707983443150,-1966.41,0.0003589,7]
[314105889,1707983443159,-577.04757293,0.0003589,14]
[314105890,1707983443169,-500.0,0.0003589,14]
[314105891,1707983443180,-336.43783872,0.0003589,14]
[314105893,1707983443191,-500.0,0.0003589,14]
[314105895,1707983443200,-500.0,0.0003589,14]
[314105897,1707983443210,-500.0,0.0003589,14]
[314105899,1707983443219,-500.0,0.0003589,14]
[314105901,1707983443228,-500.0,0.0003589,14]
[314105903,1707983443236,-511.2,0.0003589,14]
[314105905,1707983443245,-500.0,0.0003589,14]
[314105907,1707983443254,-644.72,0.0003589,14]
[314105909,1707983443265,-500.0,0.0003589,14]
[314105911,1707983443274,-500.0,0.0003589,14]
[314105913,1707983443283,-500.0,0.0003589,14]
[314105915,1707983443292,-1017.96,0.0003589,14]
[314105917,1707983443301,-607.78,0.0003589,14]
[314105919,1707983443310,-500.0,0.0003589,14]
[314105921,1707983443320,-415.41415769,0.0003589,14]
[314105923,1707983443329,-558.56,0.0003589,14]
[314105925,1707983443338,-505.92032501,0.0003589,2]
[314105927,1707983443347,-500.0,0.0003589,14]
[314105929,1707983443356,-500.0,0.0003589,14]
[314105931,1707983443365,-500.0,0.0003589,14]
[314105933,1707983443374,-726.79,0.0003589,14]
[314105935,1707983443383,-610.54062044,0.0003589,14]
[314105937,1707983443392,-511.96,0.0003589,14]
[314105939,1707983443402,-246.76428622,0.0003589,14]
[314105941,1707983443411,-500.0,0.0003589,14]
[314105943,1707983443420,-500.0,0.0003589,14]
[314105945,1707983443429,-500.0,0.0003589,14]
[314105948,1707983443439,-500.0,0.0003589,2]
[314105949,1707983443448,-500.0,0.0003589,14]
[314105952,1707983443458,-786.92,0.0003589,14]
[314105953,1707983443467,-500.0,0.0003589,14]
[314105956,1707983443477,-500.0,0.0003589,14]
[314105958,1707983443486,-2392.6,0.0003589,14]
[314105959,1707983443496,-498.94893045,0.0003589,14]
[314105962,1707983443505,-1220.8,0.0003589,14]
[314105963,1707983443514,-504.63378234,0.0003589,14]
[314105965,1707983443524,-500.0,0.0003589,14]
[314105967,1707983443533,-500.0,0.0003589,14]
[314105970,1707983443543,-2170.15,0.0003589,14]
[314105972,1707983443554,-500.0,0.0003589,14]
[314105973,1707983443563,-500.0,0.0003589,14]
[314105975,1707983443573,-15414.59,0.0003589,14]
[314105977,1707983443582,-925.91,0.0003589,14]
[314105979,1707983443591,-500.0,0.0003589,14]
[314105981,1707983443601,-1376.46,0.0003589,14]
[314105983,1707983443610,-683.35,0.0003589,14]
[314105986,1707983443620,-627.50315579,0.0003589,14]
[314105988,1707983443629,-2091.26,0.0003589,14]
[314105989,1707983443639,-500.0,0.0003589,14]
[314105991,1707983443648,-14758.37,0.0003589,14]
[314105993,1707983443658,-500.0,0.0003589,14]
[314105995,1707983443667,-4881.8,0.0003589,14]
[314105997,1707983443676,-427.75564378,0.0003589,14]
[314105999,1707983443686,-1436.48,0.0003589,14]
[314106001,1707983443695,-14804.54,0.0003589,14]
[314106003,1707983443705,-500.0,0.0003589,14]
[314106005,1707983443714,-500.0,0.0003589,14]
[314106008,1707983443725,-1680.76,0.0003589,14]
[314106010,1707983443734,-804.88,0.0003589,14]
[314106012,1707983443744,-825.09,0.0003589,14]
[314106013,1707983443754,-1372.46,0.0003589,14]
[314106015,1707983443763,-8131.47,0.0003589,14]
[314106017,1707983443772,-7359.32,0.0003589,14]
[314106019,1707983443781,-500.0,0.0003589,14]
[314106022,1707983443791,-14433.04,0.0003589,14]
[314106024,1707983443800,-3111.49,0.0003589,14]
[314106026,1707983443809,-500.0,0.0003589,14]
[314106028,1707983443818,-4447.70132168,0.0003589,14]
[314106798,1707984174234,28374.93436876,0.0002,2]
[314106799,1707984174272,34693.06563124,0.0002,2]
[314106808,1707984513586,-11767.04287415,0.000278,2]
[314106809,1707984513612,-494.93061014,0.000293,2]
[314106810,1707984513637,-19938.19043779,0.0003,2]
[314107071,1707984638449,-200.0,0.00030579,15]
[314107073,1707984638459,-24900.0,0.00031598,2]
[314107075,1707984638468,-170.087338,0.00031851,2]
[314107076,1707984638477,-4876.15,0.00032,15]
[314107078,1707984638488,-13744.80918777,0.00032616,5]
[314107080,1707984638497,-3500.0,0.00032616,5]
[314107082,1707984638507,-3951.8943095,0.00032616,5]
[314107084,1707984638516,-2521.62262897,0.00032626,5]
[314107086,1707984638525,-164.0,0.00033,2]
[314107088,1707984638534,-280.0,0.00033637,15]
[314107089,1707984638543,-274.09807742,0.0003379,2]
[314107091,1707984638553,-155.0,0.00034616,2]
[314107093,1707984638561,-266.533122,0.0003491,2]
[314107095,1707984638570,-4020.83839239,0.00035,4]
[314107097,1707984638579,-161.74103775,0.00035242,2]
[314107099,1707984638588,-154.1591596,0.00035342,2]
[314107101,1707984638597,-153.0,0.00035342,2]
[314107103,1707984638607,-153.0,0.00035342,2]
[314107104,1707984638615,-161.74103775,0.00035448,2]
[314107106,1707984638624,-153.0,0.00035452,2]
[314107108,1707984638633,-2967.02371004,0.00035516,2]
[314107110,1707984638642,-1660.79,0.00035605,3]
[314107112,1707984638651,-2391.54,0.00035606,3]
[314107113,1707984638660,-1992.95,0.00035606,3]
[314107115,1707984638669,-254.88929782,0.00035615,15]
[314107117,1707984638678,-500.0,0.00035615,15]
[314107119,1707984638687,-360.16972231,0.00035615,15]
[314107121,1707984638697,-500.0,0.00035615,15]
[314107123,1707984638706,-500.0,0.00035615,15]
[314107124,1707984638715,-500.0,0.00035615,15]
[314107126,1707984638724,-500.0,0.00035615,15]
[314107128,1707984638732,-238.04107446,0.00035615,15]
[314107131,1707984638751,-250.0,0.00035615,2]
[314107133,1707984638763,-500.0,0.00035616,7]
[314107135,1707984638773,-500.0,0.00035616,14]
[314107137,1707984638782,-348.26586637,0.00035616,14]
[314107139,1707984638791,-499.85559271,0.00035616,14]
[314107140,1707984638800,-500.0,0.00035616,14]
[314107142,1707984638810,-632.37272132,0.00035616,14]
[314107144,1707984638819,-340.40376875,0.00035616,14]
[314107146,1707984638828,-500.0,0.00035616,14]
[314107148,1707984638838,-500.0,0.00035616,14]
[314107150,1707984638847,-500.0,0.00035616,14]
[314107151,1707984638856,-574.41874669,0.00035616,14]
[314107153,1707984638866,-518.53236624,0.00035616,2]
[314107155,1707984638875,-500.0,0.00035616,14]
[314107157,1707984638886,-500.0,0.00035616,14]
[314107159,1707984638895,-500.0,0.00035616,14]
[314107161,1707984638904,-500.0,0.00035616,14]
[314107163,1707984638913,-500.92600228,0.00035616,14]
[314107165,1707984638922,-500.0,0.00035616,14]
[314107167,1707984638932,-500.0,0.00035616,14]
[314107169,1707984638941,-500.0,0.00035616,14]
[314107171,1707984638950,-500.0,0.00035616,14]
[314107172,1707984638959,-506.91722832,0.00035616,14]
[314107174,1707984638968,-500.0,0.00035616,14]
[314107176,1707984638977,-500.0,0.00035616,14]
[314107178,1707984638986,-500.0,0.00035616,14]
[314107180,1707984638996,-285.50953037,0.00035616,14]
[314107182,1707984639008,-510.46755575,0.00035616,14]
[314107184,1707984639017,-513.66558092,0.00035616,14]
[314107185,1707984639026,-500.0,0.00035616,14]
[314107187,1707984639035,-500.0,0.00035616,14]
[314107189,1707984639044,-500.0,0.00035616,14]
[314107191,1707984639053,-500.0,0.00035616,2]
[314107193,1707984639063,-500.0,0.00035616,14]
[314107195,1707984639072,-343.63079016,0.00035616,14]
[314107197,1707984639082,-500.0,0.00035616,14]
[314107199,1707984639091,-500.0,0.00035616,14]
[314107201,1707984639102,-517.39206153,0.00035616,14]
[314107203,1707984639111,-195.99445327,0.00035616,14]
[314107205,1707984639121,-500.0,0.00035616,14]
[314107207,1707984639130,-500.0,0.00035616,2]
[314107209,1707984639139,-500.0,0.00035616,14]
[314107211,1707984639148,-500.0,0.00035616,14]
[314107213,1707984639157,-500.0,0.00035616,14]
[314107215,1707984639168,-184.23353177,0.00035616,14]
[314107217,1707984639177,-514.93351127,0.00035616,14]
[314107218,1707984639186,-500.0,0.00035616,14]
[314107220,1707984639196,-500.0,0.00035616,14]
[314107222,1707984639205,-500.0,0.00035616,14]
[314107224,1707984639214,-500.0,0.00035616,14]
[314107226,1707984639224,-500.0,0.00035616,14]
[314107228,1707984639234,-516.94149683,0.00035616,14]
[314107230,1707984639243,-500.0,0.00035616,14]
[314107232,1707984639253,-500.0,0.00035616,14]
[314107234,1707984639264,-500.0,0.00035616,14]
[314107236,1707984639273,-500.0,0.00035616,14]
[314107237,1707984639282,-617.85,0.00035616,14]
[314107239,1707984639292,-790.71,0.00035616,14]
[314107241,1707984639302,-507.8299765,0.00035616,14]
[314107243,1707984639311,-582.46,0.00035616,14]
[314107245,1707984639320,-500.0,0.00035616,14]
[314107247,1707984639330,-501.74485484,0.00035616,14]
[314107249,1707984639340,-541.69581236,0.00035616,14]
[314107251,1707984639349,-975.55,0.00035616,14]
[314107253,1707984639359,-535.29,0.00035616,14]
[314107255,1707984639368,-557.04962915,0.00035616,14]
[314107257,1707984639377,-500.0,0.00035616,14]
[314107259,1707984639387,-500.0,0.00035616,2]
[314107261,1707984639398,-500.0,0.00035616,14]
[314107263,1707984639410,-401.84311323,0.00035616,14]
[314107265,1707984639420,-500.0,0.00035616,14]
[314107267,1707984639429,-500.0,0.00035616,14]
[314107268,1707984639440,-266.15669203,0.00035616,14]
[314107270,1707984639449,-506.57653874,0.00035616,14]
[314107272,1707984639459,-500.0,0.00035616,14]
[314107274,1707984639469,-500.0,0.00035616,14]
[314107276,1707984639478,-500.0,0.00035616,14]
[314107278,1707984639489,-696.51,0.00035616,14]
[314107280,1707984639498,-495.88183261,0.00035616,14]
[314107282,1707984639510,-500.0,0.00035616,14]
[314107284,1707984639520,-500.0,0.00035616,14]
[314107286,1707984639531,-500.0,0.00035616,14]
[314107287,1707984639540,-500.0,0.00035616,14]
[314107289,1707984639551,-500.0,0.00035616,14]
[314107291,1707984639560,-583.6952767,0.00035616,14]
[314107293,1707984639569,-500.0,0.00035616,14]
[314107295,1707984639580,-2079.73,0.00035616,14]
[314107297,1707984639589,-500.0,0.00035616,14]
[314107299,1707984639599,-489.82980321,0.00035616,14]
[314107301,1707984639611,-500.0,0.00035616,14]
[314107303,1707984639621,-212.18676146,0.00035616,14]
[314107305,1707984639631,-14772.31,0.00035616,14]
[314107307,1707984639641,-654.88,0.00035616,14]
[314107309,1707984639651,-1000.0,0.00035616,2]
[314107311,1707984639660,-500.0,0.00035616,14]
[314107313,1707984639670,-2292.91,0.00035616,14]
[314107314,1707984639679,-500.0,0.00035616,14]
[314107316,1707984639689,-500.0,0.00035616,14]
[314107318,1707984639698,-14143.44,0.00035616,14]
[314107320,1707984639707,-1169.93,0.00035616,14]
[314107322,1707984639717,-500.0,0.00035616,14]
[314107324,1707984639726,-500.0,0.00035616,14]
[314107326,1707984639735,-401.6398544,0.00035616,14]
[314107327,1707984639745,-1319.1,0.00035616,14]
[314107330,1707984639754,-4678.4,0.00035616,14]
[314107333,1707984639767,-500.0,0.00035616,14]
[314107336,1707984639776,-500.0,0.00035616,14]
[314107338,1707984639786,-500.0,0.00035616,14]
[314107339,1707984639795,-512.21825011,0.00035616,14]
[314107341,1707984639804,-1376.62,0.00035616,14]
[314107343,1707984639814,-500.0,0.00035616,14]
[314107348,1707984639929,-500.0,0.00035616,14]
[314107350,1707984639940,-500.0,0.00035616,14]
[314107351,1707984639949,-887.33,0.00035616,14]
[314107353,1707984639958,-500.0,0.00035616,14]
[314107355,1707984639968,-537.0742866,0.00035616,14]
[314107357,1707984639977,-542.81677724,0.00035616,14]
[314107359,1707984639986,-500.0,0.00035616,14]
[314107361,1707984639995,-2004.12,0.00035616,14]
[314107363,1707984640004,-375.44487099,0.00035616,14]
[314107365,1707984640016,-442.04517344,0.00035616,14]
[314107367,1707984640025,-504.24519245,0.00035616,14]
[314107369,1707984640034,-1610.73,0.00035616,14]
[314107371,1707984640043,-500.0,0.00035616,14]
[314107373,1707984640052,-500.0,0.00035616,14]
[314107375,1707984640061,-500.0,0.00035616,14]
[314107378,1707984640071,-500.0,0.00035616,14]
[314107379,1707984640080,-500.0,0.00035616,14]
[314107381,1707984640089,-500.0,0.00035616,2]
[314107383,1707984640098,-500.0,0.00035616,14]
[314107385,1707984640108,-500.0,0.00035616,14]
[314107388,1707984640119,-500.0,0.00035616,14]
[314107390,1707984640128,-500.0,0.00035616,14]
[314107392,1707984640137,-500.0,0.00035616,14]
[314107393,1707984640146,-500.0,0.00035616,14]
[314107396,1707984640156,-500.0,0.00035616,14]
[314107397,1707984640165,-500.0,0.00035616,14]
[314107399,1707984640174,-503.4400308,0.00035616,14]
[314107401,1707984640183,-14187.68,0.00035616,14]
[314107403,1707984640193,-500.0,0.00035616,14]
[314107405,1707984640202,-771.35,0.00035616,14]
[314107407,1707984640211,-500.0,0.00035616,14]
[314107410,1707984640221,-315.01598404,0.00035616,14]
[314107411,1707984640230,-500.0,0.00035616,14]
[314107414,1707984640239,-500.0,0.00035616,14]
[314107416,1707984640248,-564.36544628,0.00035616,14]
[314107418,1707984640259,-2135.78,0.00035616,14]
[314107420,1707984640268,-528.03076737,0.00035616,14]
[314107422,1707984640278,-1315.27,0.00035616,14]
[314107424,1707984640287,-500.0,0.00035616,14]
[314107426,1707984640296,-500.0,0.00035616,14]
[314107428,1707984640305,-544.11636985,0.00035616,14]
[314107430,1707984640314,-994.01,0.00035616,14]
[314107432,1707984640322,-505.73434112,0.00035616,14]
[314107433,1707984640331,-500.0,0.00035616,2]
[314107435,1707984640341,-7792.66,0.00035616,14]
[314107437,1707984640350,-500.0,0.00035616,14]
[314107439,1707984640358,-500.0,0.00035616,14]
[314107441,1707984640367,-500.0,0.00035616,14]
[314107443,1707984640377,-2453.96,0.00035616,14]
[314107445,1707984640386,-500.0,0.00035616,14]
[314107448,1707984640397,-13831.67,0.00035616,14]
[314107449,1707984640408,-7052.69,0.00035616,14]
[314107451,1707984640417,-500.0,0.00035616,14]
[314107453,1707984640426,-1980.25,0.00035616,14]
[314107455,1707984640435,-574.18027158,0.00035616,14]
[314107457,1707984640445,-510.79586648,0.00035616,14]
[314107459,1707984640454,-2981.85,0.00035616,14]
[314107461,1707984640463,-311.37712662,0.00035616,14]
[314107463,1707984640472,-506.21858276,0.00035616,14]
[314107465,1707984640482,-220.0,0.00035616,2]
[314107467,1707984640491,-500.0,0.00035616,14]
[314107470,1707984640501,-503.20204968,0.00035616,14]
[314107472,1707984640511,-25385.97,0.00035616,14]
[314107473,1707984640521,-500.0,0.00035616,14]
[314107475,1707984640530,-648.82,0.00035616,14]
[314107477,1707984640539,-500.0,0.00035616,14]
[314107479,1707984640548,-500.0,0.00035616,14]
[314107481,1707984640558,-500.0,0.00035616,14]
[314107484,1707984640567,-500.0,0.00035616,14]
[314107485,1707984640576,-500.0,0.00035616,14]
[314107487,1707984640585,-500.0,0.00035616,14]
[314107489,1707984640594,-500.0,0.00035616,14]
[314107491,1707984640604,-1172.51,0.00035616,14]
[314107493,1707984640613,-500.0,0.00035616,7]
[314107496,1707984640623,-500.0,0.00035616,14]
[314107497,1707984640632,-500.0,0.00035616,14]
[314107499,1707984640641,-500.0,0.00035616,14]
[314107501,1707984640650,-500.0,0.00035616,14]
[314107503,1707984640660,-500.0,0.00035616,14]
[314107505,1707984640669,-500.0,0.00035616,14]
[314107507,1707984640679,-1778.02,0.00035616,14]
[314107509,1707984640688,-500.0,0.00035616,14]
[314107511,1707984640698,-500.0,0.00035616,14]
[314107513,1707984640707,-500.0,0.00035616,14]
[314107515,1707984640717,-500.0,0.00035616,7]
[314107517,1707984640727,-754.13,0.00035616,14]
[314107519,1707984640737,-500.0,0.00035616,14]
[314107522,1707984640746,-178.61972058,0.00035616,14]
[314107523,1707984640756,-161.74103775,0.00035653,2]
[314107526,1707984640767,-18132.56438586,0.000357,2]
[314107527,1707984640776,-500.0,0.00035752,14]
[314107529,1707984640786,-500.0,0.00035752,14]
[314107532,1707984640796,-500.0,0.00035752,14]
[314107534,1707984640805,-500.0,0.00035752,14]
[314107535,1707984640814,-536.17297969,0.00035752,14]
[314107537,1707984640824,-500.0,0.00035752,14]
[314107539,1707984640832,-500.0,0.00035752,14]
[314107541,1707984640842,-500.0,0.00035752,14]
[314107543,1707984640851,-500.0,0.00035753,14]
[314107545,1707984640860,-500.0,0.00035753,14]
[314107547,1707984640869,-562.7958494,0.00035753,14]
[314107550,1707984640879,-500.0,0.00035753,14]
[314107551,1707984640888,-500.0,0.00035753,14]
[314107553,1707984640897,-500.0,0.00035753,14]
[314107555,1707984640906,-500.0,0.00035753,14]
[314107557,1707984640915,-500.0,0.00035753,14]
[314107559,1707984640924,-509.53419309,0.00035753,14]
[314107562,1707984640934,-500.0,0.00035753,14]
[314107563,1707984640943,-500.0,0.00035753,14]
[314107566,1707984640952,-500.0,0.00035753,14]
[314107567,1707984640962,-1884.47,0.00035753,7]
[314107570,1707984640971,-500.0,0.00035753,14]
[314107571,1707984640980,-500.0,0.00035753,14]
[314107574,1707984640989,-500.0,0.00035753,2]
[314107576,1707984640998,-595.82440495,0.00035753,14]
[314107578,1707984641008,-500.0,0.00035753,14]
[314107580,1707984641017,-569.62856393,0.00035753,14]
[314107582,1707984641026,-500.0,0.00035753,14]
[314107584,1707984641035,-170.56767808,0.00035753,2]
[314107586,1707984641044,-500.0,0.00035753,14]
[314107588,1707984641053,-505.07339131,0.00035753,14]
[314107590,1707984641062,-500.0,0.00035753,14]
[314107592,1707984641071,-500.0,0.00035753,14]
[314107593,1707984641080,-547.99777768,0.00035753,14]
[314107596,1707984641089,-500.0,0.00035753,14]
[314107598,1707984641098,-500.0,0.00035753,14]
[314107599,1707984641107,-575.26411866,0.00035753,14]
[314107602,1707984641116,-500.0,0.00035753,14]
[314107604,1707984641125,-500.0,0.00035753,14]
[314107605,1707984641134,-500.0,0.00035753,14]
[314107607,1707984641143,-500.0,0.00035753,14]
[314107609,1707984641154,-617.85,0.00035753,14]
[314107611,1707984641163,-790.71,0.00035753,14]
[314107613,1707984641172,-582.46,0.00035753,14]
[314107615,1707984641181,-500.0,0.00035753,14]
[314107617,1707984641190,-975.55,0.00035753,14]
[314107619,1707984641199,-535.29,0.00035753,14]
[314107621,1707984641208,-220.52929558,0.00035753,14]
[314107623,1707984641217,-500.0,0.00035753,2]
[314107625,1707984641227,-500.0,0.00035753,14]
[314107627,1707984641236,-500.0,0.00035753,14]
[314107629,1707984641245,-500.0,0.00035753,14]
[314107631,1707984641254,-500.0,0.00035753,14]
[314107633,1707984641265,-500.0,0.00035753,14]
[314107635,1707984641274,-500.0,0.00035753,14]
[314107637,1707984641283,-696.51,0.00035753,14]
[314107640,1707984641292,-500.0,0.00035753,14]
[314107641,1707984641302,-500.0,0.00035753,14]
[314107644,1707984641311,-500.0,0.00035753,14]
[314107646,1707984641320,-500.0,0.00035753,14]
[314107648,1707984641329,-529.90121524,0.00035753,14]
[314107650,1707984641338,-2079.73,0.00035753,14]
[314107652,1707984641347,-500.0,0.00035753,14]
[314107654,1707984641355,-500.0,0.00035753,14]
[314107656,1707984641365,-14772.31,0.00035753,14]
[314107658,1707984641374,-654.88,0.00035753,14]
[314107660,1707984641383,-1005.42571822,0.00035753,2]
[314107662,1707984641392,-500.0,0.00035753,14]
[314107664,1707984641401,-2292.91,0.00035753,14]
[314107665,1707984641414,-508.26930953,0.00035753,14]
[314107667,1707984641422,-502.53956151,0.00035753,14]
[314107669,1707984641431,-14143.44,0.00035753,14]
[314107671,1707984641440,-1169.93,0.00035753,14]
[314107673,1707984641450,-500.0,0.00035753,14]
[314107675,1707984641459,-500.0,0.00035753,14]
[314107677,1707984641467,-1319.1,0.00035753,14]
[314107679,1707984641477,-4678.4,0.00035753,14]
[314107681,1707984641488,-500.0,0.00035753,14]
[314107683,1707984641497,-1376.62,0.00035753,14]
[314107685,1707984641506,-500.0,0.00035753,14]
[314107687,1707984641516,-500.0,0.00035753,14]
[314107689,1707984641525,-500.0,0.00035753,14]
[314107692,1707984641536,-887.33,0.00035753,14]
[314107694,1707984641545,-500.0,0.00035753,14]
[314107695,1707984641554,-2004.12,0.00035753,14]
[314107697,1707984641563,-1610.73,0.00035753,14]
[314107700,1707984641573,-500.0,0.00035753,2]
[314107701,1707984641583,-648.0,0.00035753,14]
[314107703,1707984641592,-14187.68,0.00035753,14]
[314107705,1707984641601,-500.0,0.00035753,14]
[314107708,1707984641611,-771.35,0.00035753,14]
[314107710,1707984641621,-500.0,0.00035753,14]
[314107711,1707984641630,-500.0,0.00035753,14]
[314107713,1707984641639,-2135.78,0.00035753,14]
[314107716,1707984641649,-1315.27,0.00035753,14]
[314107717,1707984641658,-500.0,0.00035753,14]
[314107719,1707984641667,-500.0,0.00035753,14]
[314107721,1707984641676,-994.01,0.00035753,14]
[314107723,1707984641685,-7792.66,0.00035753,14]
[314107725,1707984641694,-500.0,0.00035753,14]
[314107727,1707984641704,-499.89077347,0.00035753,14]
[314107729,1707984641713,-500.0,0.00035753,14]
[314107731,1707984641722,-2453.96,0.00035753,14]
[314107733,1707984641732,-500.0,0.00035753,14]
[314107735,1707984641741,-13831.67,0.00035753,14]
[314107737,1707984641750,-7052.69,0.00035753,14]
[314107740,1707984641761,-1980.25,0.00035753,14]
[314107742,1707984641770,-2981.85,0.00035753,14]
[314107743,1707984641779,-220.0,0.00035753,2]
[314107745,1707984641788,-500.0,0.00035753,14]
[314107748,1707984641799,-25385.97,0.00035753,14]
[314107750,1707984641808,-500.0,0.00035753,14]
[314107751,1707984641818,-648.82,0.00035753,14]
[314107753,1707984641827,-500.0,0.00035753,14]
[314107763,1707984641906,-500.0,0.00035753,14]
[314107765,1707984641916,-1172.51,0.00035753,14]
[314107767,1707984641925,-500.0,0.00035753,7]
[314107769,1707984641934,-500.0,0.00035753,14]
[314107771,1707984641943,-500.0,0.00035753,14]
[314107773,1707984641952,-500.0,0.00035753,14]
[314107775,1707984641961,-500.0,0.00035753,14]
[314107777,1707984641971,-500.0,0.00035753,14]
[314107779,1707984641980,-500.0,0.00035753,14]
[314107781,1707984641989,-1778.02,0.00035753,14]
[314107783,1707984641998,-500.0,0.00035753,14]
[314107785,1707984642007,-500.0,0.00035753,14]
[314107787,1707984642017,-502.57460696,0.00035753,7]
[314107789,1707984642026,-754.13,0.00035753,14]
[314107792,1707984642035,-500.0,0.00035753,14]
[314107794,1707984642044,-2685.07989918,0.0003579,2]
[314107796,1707984642053,-111372.99243754,0.000358,30]
[314107826,1707984642321,-103549.99999982,0.000358,30]
[314108040,1707984646520,-1384.0,0.00035605,3]